Cogmind - Beta 17 @@@ ROGUE MODE // 2026.07.25 @ 01:43:57 Player: Momo Result: Destroyed by S-27 Virus with Autogun Performance ------------- Evolutions (5) 2500 Regions Visited (12) 2400 Robots Destroyed (79) 395 Value Destroyed (3462) 3462 Prototype IDs (31) 620 Alien Tech Used (0) 0 Bonus (1934) 1934 TOTAL SCORE: 11311 Bonus ------- High Alert Combat Kills 240 Follower Combat Kills 1396 Network Hubs Disabled 200 Registered with UFD 300 Met Optimus in HQ 500 Built Enhanced Grunts 300 Met R17 at Cetus 500 Friendly Fire -1502 Cogmind --------- Core Integrity 0/1000 Matter 291/300 Energy 98/100 System Corruption 22% Temperature Cool (0) Movement Core (50) Location -5/Upper Caves Parts ------- > --- POWER (1) -------- (None) > --- PROPULSION (5) --- Gyrokinetic Inverter (fused) > --- UTILITY (9) ------ Improved Signal Interpreter Makeshift Hacking Suite Improved Hacking Suite > --- WEAPON (2) ------- (None) > --- INVENTORY (5) ---- Gun Armor Enhanced Scrap Shield Self-contained Transmogrifier Gauss Rifle Peak State ------------ > --- POWER ------------ Neutrino Core > --- PROPULSION ------- Gravmag System Combat Airjet Combat Airjet Combat Airjet Combat Airjet > --- UTILITY ---------- Large Storage Unit Improved Sensor Array Improved Signal Interpreter Experimental Terrain Scanner Surveybot 17 Chip Core Analyzer Centrium Medium Armor Plating > --- WEAPON ----------- Advanced KE Penetrator Phasing Sabre > --- INVENTORY -------- Quantum Reactor Quantum Reactor Centrium Heavy Treads Centrium Heavy Treads High-capacity Matter Pod Gun Armor Experimental Thermal Shield Improved Hacking Suite Improved System Shield Self-contained Transmogrifier Cooled Particle Cannon Advanced KE Penetrator DRS Beacon [Rating: 91] Favorites ----------- Power Angular Momentum Engine Engine Angular Momentum Engine Power Core Neutrino Core Reactor Quantum Reactor Propulsion Combat Airjet Treads Centrium Heavy Treads Leg Makeshift Leg Wheel Wheel Hover Unit Combat Airjet Flight Unit Field Propulsion Drive Utility Large Storage Unit Device Improved Sensor Array Storage Large Storage Unit Processor Improved Signal Interpreter Hackware Hacking Suite Protection Hardened Light Armor Plating Weapon Magnetic Acceleration Cannon Energy Gun Subdweller Laser Energy Cannon Advanced Beam Cannon Ballistic Gun Advanced KE Penetrator Ballistic Cannon Magnetic Acceleration Cannon Launcher Improved Proton Missile Launcher Impact Weapon Heavy Mace Slashing Weapon Phasing Sabre Build | -11 -10 -10 -10 -8 -6 -6 -6 -6 -6 -5 -5 -5 ------- Run | Yrd Mat Min Sub Scr Fac Ext Cet Arc Hub Fac Upp Upp Slots Evolved 10 | . . . . . 8 . . . . 2 . . Power . | . . . . . . . . . . . . . Propulsion 3 | . . . . . 3 . . . . . . . Utility 7 | . . . . . 5 . . . . 2 . . Weapon . | . . . . . . . . . . . . . Parts Attached 95 | 2 4 1 9 4 23 6 11 6 3 18 8 . Power 8 | . . . 2 1 2 1 1 . . 1 . . Engine 3 | . . . 2 1 . . . . . . . . Core 3 | . . . . . 2 1 . . . . . . Reactor 2 | . . . . . . . 1 . . 1 . . Propulsion 25 | 2 . . 4 . 9 1 2 . 1 6 . . Treads 2 | . . . . . . . 1 . 1 . . . Leg 5 | . . . 2 . 2 . 1 . . . . . Wheel 4 | 2 . . 2 . . . . . . . . . Hover 13 | . . . . . 7 1 . . . 5 . . Flight 1 | . . . . . . . . . . 1 . . Utility 38 | . 2 1 . 1 7 1 5 6 2 9 4 . Device 14 | . 1 . . 1 2 . 2 2 . 6 . . Storage 2 | . . 1 . . . . . . 1 . . . Processor 5 | . . . . . 1 . 1 1 . 1 1 . Hackware 11 | . . . . . 3 1 . 3 1 1 2 . Protection 6 | . 1 . . . 1 . 2 . . 1 1 . Artifact . | . . . . . . . . . . . . . Weapon 24 | . 2 . 3 2 5 3 3 . . 2 4 . Energy Gun 3 | . . . 1 . 1 . . . . . 1 . Energy Cannon 5 | . 2 . . . . 1 1 . . 1 . . Ballistic Gun 5 | . . . 1 . . . 2 . . 1 1 . Ballistic Cannon 4 | . . . 1 1 2 . . . . . . . Launcher 3 | . . . . . 2 . . . . . 1 . Special Weapon . | . . . . . . . . . . . . . Impact Weapon 3 | . . . . 1 . 1 . . . . 1 . Slashing Weapon 1 | . . . . . . 1 . . . . . . Piercing Weapon . | . . . . . . . . . . . . . Special Melee Weapon . | . . . . . . . . . . . . . Unidentified Prototypes 11 | . 1 . . . 1 1 6 . . 1 1 . Corrupted Parts 2 | . . . . . . . . . . 1 1 . System Corruption 13 | . . . . . . . . . . 4 9 . Parts Lost 45 | . . . 3 . 9 2 . . 11 10 5 5 Power 2 | . . . . . 1 . . . . 1 . . Propulsion 16 | . . . 2 . 5 . . . 4 4 1 . Utility 14 | . . . . . . 1 . . 4 4 1 4 Weapon 13 | . . . 1 . 3 1 . . 3 1 3 1 Highest Loss Streak 8 | . . . 1 . 4 1 . . 8 7 4 5 To Critical Strikes 1 | . . . . . . . . . 1 . . . Average Backups 9 | . 1 8 12 10 11 12 12 12 12 3 3 3 Power . | . . . . . . . 2 1 1 . . . Propulsion . | . . . 2 1 . . 1 1 . . . . Utility 5 | . 1 5 5 6 6 6 5 6 7 1 1 1 Weapon 1 | . . 3 3 1 1 3 1 2 1 1 1 1 Tool/Special . | . . . . . . . . . . . . . Unused Backups 21 | . . . 4 6 . . 3 1 2 2 . 3 Power 3 | . . . . 1 . . 1 1 . . . . Propulsion 2 | . . . . 2 . . . . . . . . Utility 8 | . . . 2 1 . . 1 . 2 1 . 1 Weapon 7 | . . . 2 2 . . 1 . . 1 . 1 Tool/Special 1 | . . . . . . . . . . . . 1 Average Slot Usage (%) 86 | . 45 85 93 92 82 99 95 100 88 68 61 45 Engine 5 | . . . 10 13 3 . . . . . . . Core 1 | . . . . . 2 6 5 6 3 . . . Leg 10 | . . . 16 26 10 . . . . . . . Wheel 2 | . 28 28 8 . . . . . . . . . Hover 11 | . . . . . 16 33 32 33 22 10 6 5 Device 7 | . 4 1 . 11 8 5 7 7 3 15 6 . Storage 8 | . . 12 14 13 6 6 6 6 5 . . . Processor 4 | . . . . . 5 6 6 14 12 5 8 8 Hackware 11 | . . . . . 15 23 18 12 20 20 20 22 Protection 3 | . 4 14 14 1 . 3 2 3 2 . 4 1 Energy Gun 1 | . . . 4 3 . . . . . . . . Energy Cannon 3 | . 8 28 10 . . 2 5 . . 3 . . Ballistic Gun 2 | . . . 5 2 . . 4 7 5 . 4 1 Ballistic Cannon 5 | . . . 7 9 7 6 . . . . . . Impact Weapon 2 | . . . . 8 2 . . . . . 1 . Peak Build Rating 91 | 2 12 13 22 32 69 69 89 91 89 73 60 57 Average Rating 45 | 1 5 12 18 25 52 67 77 84 81 61 54 37 On Entrance 39 | . 2 12 13 21 32 69 68 84 83 21 46 57 Avg Prop Armor Cover (%) 3 | . . . 3 . 4 3 15 . 2 3 1 5 Naked Turns 51 | . . . . 51 . . . . . . . . Heaviest Build 63 | . 15 33 40 45 52 55 63 54 45 33 27 26 Greatest Support 80 | 20 20 20 40 40 65 65 61 61 80 31 22 11 Greatest Overweight (x) 13 | . . 1 13 10 3 1 1 . 3 2 2 2 Average Overweight (x) . | . . . . . . . . . . . 1 . Largest Inventory Capacity 15 | 5 5 15 15 15 15 15 15 15 15 5 5 5 Average Capacity 12 | 5 5 14 15 14 15 15 15 15 14 5 5 5 Most Carried 15 | . 5 13 15 15 15 15 15 15 15 5 5 5 Average Carried 11 | . 1 10 14 11 13 14 14 14 13 4 4 4 Final Capacity 15 | 5 5 15 15 15 15 15 15 15 5 5 5 5 Final Carried 15 | . 4 13 15 15 15 14 15 15 5 5 4 5 Class Distribution -------------------- 37% | Hacker-Mutant 32% | Mutant 13% | Commander-Mutant 11% | Scavenger-Mutant 3% | Derelict-Mutant Dominant Class ---------------- Mutant | -10/Materials Mutant | -10/Mines Mutant | -10/Subcaves Mutant | -8/Scraptown Hacker-Mutant | -6/Factory Hacker-Mutant | -6/Extension Commander-Mutant | -6/Cetus Commander-Mutant | -6/Archives Hacker-Mutant | -6/Hub_04(d) Hacker-Mutant | -5/Factory Hacker-Mutant | -5/Upper Caves Wizard-Mutant | -5/Upper Caves Resources | -11 -10 -10 -10 -8 -6 -6 -6 -6 -6 -5 -5 -5 ----------- Run | Yrd Mat Min Sub Scr Fac Ext Cet Arc Hub Fac Upp Upp Matter Collected 3818 | 220 . 88 373 120 345 1061 811 311 190 120 173 6 Remotely . | . . . . . . . . . . . . . Salvage Created 3404 | . . 39 400 . 278 843 240 363 1029 138 74 . Parts 137 | . . 1 20 . 17 21 9 27 35 4 3 . Haulers Intercepted . | . . . . . . . . . . . . . Recyclers Shooed 5 | . . . . . 1 4 . . . . . . Parts Field Recycled . | . . . . . . . . . . . . . Retrieved Matter . | . . . . . . . . . . . . . Parts Self-Destructed 6 | . . . 2 . . . . . . . 4 . Prevented 4 | . . . . . . . . . . . 4 . Parts Restored . | . . . . . . . . . . . . . Kills | -11 -10 -10 -10 -8 -6 -6 -6 -6 -6 -5 -5 -5 ------- Run | Yrd Mat Min Sub Scr Fac Ext Cet Arc Hub Fac Upp Upp Combat Hostiles Destroyed 53 | . . 1 11 . 8 15 1 1 14 1 1 . Melee 2 | . . . . . . 1 . . 1 . . . Guns 9 | . . . 1 . 1 . 1 1 5 . . . Cannons 27 | . . 1 9 . 3 14 . . . . . . AOE 12 | . . . . . 4 . . . 7 1 . . Classes Destroyed 14 | . . 1 2 . 8 . 2 . 1 . . . Worker 4 | . . . . . 2 . . . 2 . . . Builder 3 | . . . . . 2 1 . . . . . . Recycler 5 | . . . . . 1 2 . . 1 1 . . Mechanic 1 | . . . . . 1 . . . . . . . Operator 9 | . . . . . 1 . . 8 . . . . Watcher 2 | . . . . . . . 2 . . . . . Swarmer 3 | . . . . . 3 . . . . . . . Grunt 17 | . . 1 . . . 6 . . 10 . . . Sentry 13 | . . . 1 . 1 8 . 1 2 . . . Specialist 2 | . . . . . . . . . 2 . . . Hunter 4 | . . . . . 3 . . . . . 1 . Programmer 2 | . . . . . 1 . . . . 1 . . Cetus Guard 1 | . . . . . . . 1 . . . . . Subdweller 10 | . . . 10 . . . . . . . . . Decomposer 1 | . . . . . . . . . . . 1 . Thug 1 | . . . . . . 1 . . . . . . Savage 1 | . . . . . . . 1 . . . . . Best Kill Streak 14 | . . 1 2 . 10 3 1 5 14 1 1 . Combat Bots Only 11 | . . 1 2 . 5 3 1 1 11 1 1 . Max Kills in Single Turn 10 | . . 1 1 . 4 1 1 1 10 1 1 . Gunslinging . | . . . . . . . . . . . . . Exploded 7 | . . . . . 2 . . . 7 1 . . Melee 1 | . . . . . . 1 . . 1 . . . Uniques/NPCs Destroyed 1 | . . . . . . . 1 . . . . . A7 (-6/Cetus) Combat | -11 -10 -10 -10 -8 -6 -6 -6 -6 -6 -5 -5 -5 -------- Run | Yrd Mat Min Sub Scr Fac Ext Cet Arc Hub Fac Upp Upp Hostile Shots Fired 678 | . . . 44 . 101 167 11 . 175 43 68 69 Missed 252 | . . . 12 . 36 78 4 . 55 18 18 31 Hits 426 | . . . 32 . 65 89 7 . 120 25 50 38 Melee 5 | . . . . . . . . . 5 . . . Projectile 421 | . . . 32 . 65 89 7 . 115 25 50 38 Critical Strikes 13 | . . . 1 . 1 . 4 . 6 1 . . Damage Taken 7255 | . . . 675 . 1127 751 180 25 2271 900 767 559 Core 1771 | . . . 145 . 179 143 23 . 267 370 199 445 Absorbed by Shields 141 | . . . . . . 63 78 . . . . . Reduced by Siege Mode 8 | . . . . . . . . . 8 . . . Ignored by Resistances 91 | . . . . . 5 51 35 . . . . . Core Remaining (%) 56 | 100 . . . 42 . . . . 28 . . . Volleys Fired 239 | . . 3 33 . 37 69 44 2 20 28 3 . Largest 2 | . . 2 2 . 2 2 2 2 1 1 2 . Hottest 136 | . . 136 136 . 81 90 125 70 35 35 71 . Shots Fired 320 | . . 6 60 . 44 97 53 4 20 30 5 1 Gun 48 | . . . 6 . 5 . 9 4 20 . 4 . Cannon 262 | . . 6 54 . 31 97 44 . . 30 . . Launcher 10 | . . . . . 8 . . . . . 1 1 Special . | . . . . . . . . . . . . . Kinetic 157 | . . . 20 . 31 71 9 4 20 . 2 . Thermal 151 | . . 6 40 . 5 26 44 . . 30 . . Explosive 8 | . . . . . 8 . . . . . . . Electromagnetic 4 | . . . . . . . . . . . 3 1 Robot Hit Streak 13 | . . 4 13 . 10 9 6 3 9 1 3 . Robot Miss Streak 8 | . . 1 3 . 5 8 3 1 3 5 2 . Penetration Max . | . . . . . . . . . . . . . Secondary Targets . | . . . . . . . . . . . . . Shots Hit Robots 207 | . . 5 43 . 26 77 19 13 16 1 7 . Core Hits 196 | . . 1 33 . 32 83 10 6 23 6 2 . Critical Kills 4 | . . . 1 . . . 3 . . . . . Critical Parts Destroyed 3 | . . . . . . . 2 . 1 . . . Critical Strikes 9 | . . . 1 . . 1 5 . 2 . . . Meltdown 2 | . . . 1 . . . 1 . . . . . Destroy 6 | . . . . . . . 4 . 2 . . . Sever 1 | . . . . . . 1 . . . . . . Melee Attacks 84 | . . . . . 15 28 . 11 15 . 15 . Impact 50 | . . . . . 15 20 . . . . 15 . Slashing 34 | . . . . . . 8 . 11 15 . . . Piercing . | . . . . . . . . . . . . . Sneak Attacks 13 | . . . . . 1 2 . 10 . . . . Combat Hostiles . | . . . . . . . . . . . . . Follow-up Attacks . | . . . . . . . . . . . . . Damage Inflicted 9555 | . . 101 913 . 1534 2444 673 1215 2187 232 256 . Guns 816 | . . . 36 . 132 . 183 53 372 . 40 . Cannons 3927 | . . 101 877 . 316 2143 490 . . . . . Explosions 2813 | . . . . . 875 . . . 1646 232 60 . Melee 1997 | . . . . . 211 301 . 1162 167 . 156 . Ramming 2 | . . . . . . . . . 2 . . . Kinetic 2855 | . . . 441 . 316 1475 183 53 372 . 15 . Thermal 2419 | . . 101 472 . 488 668 490 . . 200 . . Explosive 519 | . . . . . 519 . . . . . . . Electromagnetic 1763 | . . . . . . . . . 1646 32 85 . Impact 490 | . . . . . 211 123 . . . . 156 . Slashing 1507 | . . . . . . 178 . 1162 167 . . . Piercing . | . . . . . . . . . . . . . Highest Corruption 22 | . . . . . 1 1 1 1 15 13 22 22 Average Corruption 4 | . . . . . 1 1 1 1 5 3 19 22 Corruption Purged 1 | . . . . . . . . 1 . . . . Corruption Blocked . | . . . . . . . . . . . . . Effects 72 | . . . . . 2 8 4 . 5 20 22 11 Message Errors 24 | . . . . . . 2 2 . . 7 9 4 Matter Fused 12 | . . . . . 1 3 . . 2 2 2 2 Heat Flow Errors 11 | . . . . . 1 2 . . 1 3 4 . Energy Discharges 7 | . . . . . . . 1 . . 2 3 1 Parts Fused 1 | . . . . . . . . . . 1 . . Data Loss (minor) 7 | . . . . . . 1 1 . 1 2 2 . Data Loss (major) 2 | . . . . . . . . . . 1 . 1 Misfires 4 | . . . . . . . . . . 2 1 1 Alerts 1 | . . . . . . . . . . . 1 . Misdirections 3 | . . . . . . . . . 1 . . 2 Overload Shots 14 | . . . . . . 10 4 . . . . . Effects 1 | . . . . . . 1 . . . . . . Short Circuit 1 | . . . . . . 1 . . . . . . Overflow Damage 867 | . . . . . 98 91 . 412 71 165 30 . Projectiles 38 | . . . . . . 38 . . . . . . Explosions 209 | . . . . . 12 . . . 32 165 . . Melee 620 | . . . . . 86 53 . 412 39 . 30 . Knockbacks 49 | . . . 15 . 9 25 . . . . . . Impact 4 | . . . . . 2 2 . . . . . . Kinetic 43 | . . . 14 . 7 22 . . . . . . Secondary 2 | . . . 1 . . 1 . . . . . . Self-Inflicted Damage 564 | . . . . . 71 . . . 106 361 26 . Shots 10 | . . . . . 2 . . . 1 6 1 . Rammed 1 | . . . . . . . . . 1 . . . Targets Rammed 1 | . . . . . . . . . 1 . . . Kicked . | . . . . . . . . . . . . . Crushed . | . . . . . . . . . . . . . Highest Temperature 236 | . . 205 60 . 236 225 156 . 161 190 197 . Average Temperature 65 | . . 100 19 . 53 70 74 . 89 77 93 . Received Heat Transfer 1014 | . . . 111 . 135 264 . . 429 66 9 . Siege Activations 1 | . . . . . . . . . 1 . . . Total Turns 13 | . . . . . . . . . 13 . . . Longest Duration 13 | . . . . . . . . . 13 . . . Martial Activations . | . . . . . . . . . . . . . Shielding Activations . | . . . . . . . . . . . . . Robots Disrupted . | . . . . . . . . . . . . . Combat Hostiles . | . . . . . . . . . . . . . Robots Corrupted 4 | . . . . . 1 1 . . 1 . 1 . Combat Hostiles 2 | . . . . . . . . . 1 . 1 . Parts Fried 14 | . . . . . . 3 . . 9 . 2 . Impact Corruptions 8 | . . . . . 3 4 . . . . 1 . Robots Melted 2 | . . . 1 . . . 1 . . . . . Combat Hostiles 1 | . . . 1 . . . . . . . . . Parts Melted 5 | . . . 4 . . . 1 . . . . . Heat Transferred 2843 | . . 185 839 . 450 744 525 . . 100 . . Parts Sabotaged 4 | . . . . . . . . . 4 . . . Parts Stolen . | . . . . . . . . . . . . . Parts Stripped . | . . . . . . . . . . . . . Power Chain Reactions 2 | . . . . . . . . . 1 1 . . Alert | -11 -10 -10 -10 -8 -6 -6 -6 -6 -6 -5 -5 -5 ------- Run | Yrd Mat Min Sub Scr Fac Ext Cet Arc Hub Fac Upp Upp Maximum Alert Level 3 | . . . . . 1 1 1 1 3 1 . . Low Security (%) 61 | 100 100 100 . . 76 91 57 8 37 17 . . Level 1 35 | . . . . . 23 8 42 91 24 82 . . Level 2 . | . . . . . . . . . 1 . . . Level 3 2 | . . . . . . . . . 36 . . . Level 4 . | . . . . . . . . . . . . . Level 5 . | . . . . . . . . . . . . . High Security . | . . . . . . . . . . . . . Max Security . | . . . . . . . . . . . . . Peak Influence 868 | . . 20 . . 259 218 269 263 868 383 . . Initial 383 | . . . . . . 4 117 42 77 383 . . Average 153 | . . 1 . . 93 65 183 232 404 262 . . Influence Increases 4215 | . . 20 20 . 451 1031 362 291 1229 516 145 150 Destroy 0b10 Robot/C 1460 | . . 20 20 . 160 520 160 80 460 20 20 . Destroy 0b10 Robot/NC 155 | . . . . . 35 25 10 40 35 5 5 . Destroy Leader 206 | . . . . . 50 44 . . 102 10 . . Allied During Kill 733 | . . . . . . 255 167 120 191 . . . Successful Hack 107 | . . . . . 50 21 5 . 2 29 . . Disable Machine 465 | . . . . . 90 45 . 45 180 105 . . Destroy Structure 369 | . . . . . 51 31 20 6 169 92 . . Partial Spotted 45 | . . . . . 15 15 . . 15 . . . Lose Combat Pursuer 675 | . . . . . . 75 . . 75 255 120 150 Influence Decreases 4135 | . . 20 20 . 441 830 468 173 669 952 470 92 Entered New Map 844 | . . . . . . 6 94 63 146 400 130 5 Time Decay 2001 | . . 20 20 . 241 415 294 110 149 422 270 60 Lost Part 332 | . . . . . 50 15 . . 110 100 50 7 Lost Ally 450 | . . . . . . 107 80 . 193 30 20 20 Purge Threat 508 | . . . . . 150 287 . . 71 . . . Squads Dispatched 25 | . 2 1 . . 6 3 . . 10 3 . . Investigation 9 | . 2 1 . . 3 2 . . . 1 . . Extermination 3 | . . . . . 1 . . . . 2 . . Reinforcement 10 | . . . . . 2 1 . . 7 . . . Assault 2 | . . . . . . . . . 2 . . . Garrison 1 | . . . . . . . . . 1 . . . Intercept . | . . . . . . . . . . . . . Searches Triggered . | . . . . . . . . . . . . . Construction Impeded 1 | . . . . . . 1 . . . . . . Haulers Reinforced 1 | . . . . . . . . . 1 . . . Active Scanning Responses . | . . . . . . . . . . . . . Cargo Convoy Interrupts . | . . . . . . . . . . . . . Stealth | -11 -10 -10 -10 -8 -6 -6 -6 -6 -6 -5 -5 -5 --------- Run | Yrd Mat Min Sub Scr Fac Ext Cet Arc Hub Fac Upp Upp Distress Signals 9 | . . . . . . 4 2 . 2 1 . . Communications Jammed 11 | . . . . . . . . . . 11 . . Distress Signals 11 | . . . . . . . . . . 11 . . Times Spotted 183 | . 1 3 12 . 18 36 10 5 49 24 9 16 Peak Tracking Total 22 | . 1 3 2 . 6 5 5 1 22 13 6 6 Tactical Retreats 20 | . . . . . . 2 . . 4 7 5 2 ECM-based Alert Blocks 5 | . . . . . . . . . . 5 . . Traps | -11 -10 -10 -10 -8 -6 -6 -6 -6 -6 -5 -5 -5 ------- Run | Yrd Mat Min Sub Scr Fac Ext Cet Arc Hub Fac Upp Upp Traps Triggered 9 | . 2 . . . . 1 . . 2 4 . . Indirectly 1 | . . . . . . . . . 1 . . . Trap Hack Attempts . | . . . . . . . . . . . . . Triggered . | . . . . . . . . . . . . . Disarmed . | . . . . . . . . . . . . . Reprogrammed . | . . . . . . . . . . . . . Reused . | . . . . . . . . . . . . . Traps Extracted . | . . . . . . . . . . . . . Installed . | . . . . . . . . . . . . . Triggered . | . . . . . . . . . . . . . Most Traps Carried 3 | . . 3 3 . . . . . . . . . Machines | -11 -10 -10 -10 -8 -6 -6 -6 -6 -6 -5 -5 -5 ---------- Run | Yrd Mat Min Sub Scr Fac Ext Cet Arc Hub Fac Upp Upp Machines Disabled 34 | . . . 1 . 6 5 . 3 12 7 . . Max in Single Turn 9 | . . . 1 . 5 1 . 1 9 4 . . Garrison Access 2 | . . . . . . . . . 2 . . . Network Hub 1 | . . . . . . . . . 1 . . . Machines Repaired . | . . . . . . . . . . . . . Machines Dismantled . | . . . . . . . . . . . . . Machines Sabotaged . | . . . . . . . . . . . . . Overloaded Fab Kills . | . . . . . . . . . . . . . Hacking | -11 -10 -10 -10 -8 -6 -6 -6 -6 -6 -5 -5 -5 --------- Run | Yrd Mat Min Sub Scr Fac Ext Cet Arc Hub Fac Upp Upp Machines Accessed 52 | . . 1 1 10 15 11 1 . 5 8 . . Terminals 30 | . . . . . 9 10 1 . 4 6 . . Fabricators 3 | . . . . . 2 . . . . 1 . . Repair Stations . | . . . . . . . . . . . . . Recycling Units 4 | . . . . . 3 1 . . . . . . Scanalyzers 1 | . . . . . 1 . . . . . . . Garrison Access 2 | . . . . . . . . . 1 1 . . Total Hacks 236 | . . 1 9 76 56 34 1 . 19 40 . . Successful 168 | . . 1 9 76 27 20 1 . 12 22 . . Failed 67 | . . . . . 29 13 . . 7 18 . . Catastrophic 7 | . . . . . 2 1 . . . 4 . . Database Lockouts 1 | . . . . . . 1 . . . . . . Manual 110 | . . . . . 36 27 1 . 14 32 . . Terminals 118 | . . . . . 37 32 1 . 17 31 . . Fabricators 8 | . . . . . 6 . . . . 2 . . Repair Stations . | . . . . . . . . . . . . . Recycling Units 11 | . . . . . 9 2 . . . . . . Scanalyzers 4 | . . . . . 4 . . . . . . . Garrison Access 9 | . . . . . . . . . 2 7 . . Terminal Hacks 125 | . . 1 9 76 9 14 1 . 6 9 . . Record 77 | . . . 8 69 . . . . . . . . Part Schematic 2 | . . . . . . 2 . . . . . . Robot Analysis 7 | . . . . 7 . . . . . . . . Open Door 7 | . . 1 . . 1 4 1 . . . . . Open DSF 1 | . . . . . . . . . . 1 . . Branch Access Points 1 | . . . . . . . . . . 1 . . Terminal Index 2 | . . . . . 1 . . . . 1 . . Fabricator Index 1 | . . . . . . . . . . 1 . . Recycling Unit Index 1 | . . . . . . . . . . 1 . . Alert Level 3 | . . . . . . 1 . . . 2 . . Unreport Threat 7 | . . . . . 1 4 . . 2 . . . Locate Traps 4 | . . . . . 2 . . . 2 . . . Dispatch Records 1 | . . . . . 1 . . . . . . . Recall Investigation 5 | . . . . . 2 2 . . 1 . . . Recall Reinforcements 2 | . . . . . . 1 . . 1 . . . Hauler Manifests 1 | . . . . . 1 . . . . . . . Registered Components 1 | . . . . . . . . . . 1 . . Registered Prototypes 1 | . . . . . . . . . . 1 . . Proto ID Catalog 1 | . . . 1 . . . . . . . . . Fabricator Hacks 3 | . . . . . 1 . . . . 2 . . Network Status 1 | . . . . . 1 . . . . . . . Load Schematic 1 | . . . . . . . . . . 1 . . Build 1 | . . . . . . . . . . 1 . . Repair Station Hacks . | . . . . . . . . . . . . . Recycling Unit Hacks 3 | . . . . . 3 . . . . . . . Retrieve Matter 1 | . . . . . 1 . . . . . . . Retrieve Components 2 | . . . . . 2 . . . . . . . Scanalyzer 3 | . . . . . 3 . . . . . . . Insert Component 1 | . . . . . 1 . . . . . . . Analyze 1 | . . . . . 1 . . . . . . . Retrieve Study 1 | . . . . . 1 . . . . . . . Garrison Access Hacks 1 | . . . . . . . . . 1 . . . Seal Access 1 | . . . . . . . . . 1 . . . Unauthorized Hacks 33 | . . . . . 11 6 . . 5 11 . . Terminals 27 | . . . . . 7 5 . . 5 10 . . Track 2 | . . . . . . . . . . 2 . . Assimilate 7 | . . . . . 3 2 . . 1 1 . . Botnet 12 | . . . . . 3 2 . . 3 4 . . Operators 4 | . . . . . 1 1 . . 1 1 . . Skim 2 | . . . . . . . . . . 2 . . Fabricators 1 | . . . . . 1 . . . . . . . Fabnet 1 | . . . . . 1 . . . . . . . Repair Stations . | . . . . . . . . . . . . . Recycling Units 4 | . . . . . 3 1 . . . . . . Fedlink 4 | . . . . . 3 1 . . . . . . Scanalyzers . | . . . . . . . . . . . . . Garrison Access 1 | . . . . . . . . . . 1 . . Reprogram 1 | . . . . . . . . . . 1 . . Data Cores Recovered . | . . . . . . . . . . . . . Used . | . . . . . . . . . . . . . Hacking Detections 30 | . . . . . 13 7 1 . 3 6 . . Full Trace Events 1 | . . . . . . . . . . 1 . . Feedback Events . | . . . . . . . . . . . . . Feedback Blocked . | . . . . . . . . . . . . . Robot Schematics Acquired . | . . . . . . . . . . . . . Robots Built . | . . . . . . . . . . . . . Authchips . | . . . . . . . . . . . . . Time . | . . . . . . . . . . . . . Total Robot Build Rating . | . . . . . . . . . . . . . Part Schematics Acquired 3 | . . . . . 1 2 . . . . . . Parts Built 1 | . . . . . . . . . . 1 . . Authchips . | . . . . . . . . . . . . . Time 106 | . . . . . . . . . . 106 . . Total Part Build Rating 6 | . . . . . . . . . . 6 . . Part Studies Acquired 1 | . . . . . 1 . . . . . . . Parts Repaired . | . . . . . . . . . . . . . Time . | . . . . . . . . . . . . . Parts Recycled . | . . . . . . . . . . . . . Recycled Matter . | . . . . . . . . . . . . . Retrieved Matter . | . . . . . . . . . . . . . Retrieved Components 11 | . . . . . 11 . . . . . . . Parts Scanalyzed 1 | . . . . . 1 . . . . . . . Part Schematics Acquired 1 | . . . . . 1 . . . . . . . Parts Damaged . | . . . . . . . . . . . . . Bothacking | -11 -10 -10 -10 -8 -6 -6 -6 -6 -6 -5 -5 -5 ------------ Run | Yrd Mat Min Sub Scr Fac Ext Cet Arc Hub Fac Upp Upp Used RIF Installer . | . . . . . . . . . . . . . Robots Hacked 3 | . . . . . . . . . . 1 1 1 Non-combat . | . . . . . . . . . . . . . Combat 3 | . . . . . . . . . . 1 1 1 Robot Hacks Applied . | . . . . . . . . . . . . . Relay Couplers Released 3 | . . . . . . . . . 3 . . . Machine Destruction 3 | . . . . . . . . . 3 . . . Fabnet Peak Effective % 3 | . . . . . . . . . . 3 3 3 Autooverrided 3 | . . . . . . . . . . 1 1 1 Robots Rewired 18 | . . . . . . 18 . . . . . . Allies Hacked . | . . . . . . . . . . . . . Hacks Repelled . | . . . . . . . . . . . . . Allies | -11 -10 -10 -10 -8 -6 -6 -6 -6 -6 -5 -5 -5 -------- Run | Yrd Mat Min Sub Scr Fac Ext Cet Arc Hub Fac Upp Upp Total Allies 40 | . . . . . 1 24 10 . . 2 1 2 Largest Group 17 | . . . . . 1 17 17 17 17 1 1 1 Highest-Rated Group 813 | . . . . . 26 537 813 813 810 10 30 180 Highest-Rated Ally 180 | . . . . . 26 159 159 96 96 10 30 180 Initial UFD Resources 45 | . . . . . 24 40 42 42 42 45 45 45 Total Orders 40 | . . . . . . 10 28 . 2 . . . STAY 13 | . . . . . . 4 7 . 2 . . . ROAM 3 | . . . . . . 1 2 . . . . . FOLLOW 17 | . . . . . . 5 12 . . . . . AID 7 | . . . . . . . 7 . . . . . Ally Attacks 295 | . . . . . . 89 68 26 107 1 2 2 Total Damage 6623 | . . . . . . 2154 1187 566 2626 16 46 28 Kills 39 | . . . . . . 13 7 3 16 . . . Allies Corrupted . | . . . . . . . . . . . . . Allies Melted 2 | . . . . . . 1 1 . . . . . Intel | -11 -10 -10 -10 -8 -6 -6 -6 -6 -6 -5 -5 -5 ------- Run | Yrd Mat Min Sub Scr Fac Ext Cet Arc Hub Fac Upp Upp Active Infowar (turns) 6067 | . . . . 2274 897 1098 392 237 216 953 . . Sensors 5926 | . . . . 2274 897 1089 392 237 85 952 . . Terrain 437 | . . . . . . . . 33 131 273 . . Seismic 315 | . . . . . . . . . . 315 . . Cloaking 177 | . . . . . 136 41 . . . . . . Jamming 885 | . . . . . . . . . . 885 . . ECM 295 | . . . . . . . . . . 295 . . Robot Analysis Total 7 | . . . . 7 . . . . . . . . Derelict Logs Recovered 11 | . . 2 1 5 . . . . . . 1 2 Drone Launches . | . . . . . . . . . . . . . Drone Recoveries . | . . . . . . . . . . . . . Exploration | -11 -10 -10 -10 -8 -6 -6 -6 -6 -6 -5 -5 -5 ------------- Run | Yrd Mat Min Sub Scr Fac Ext Cet Arc Hub Fac Upp Upp Turns Passed 9673 | 23 90 270 1199 2668 1055 1326 656 237 348 1034 590 177 Spaces Moved 7212 | 27 96 268 765 1480 833 1068 555 184 290 961 444 241 Core 287 | 6 . . 5 113 . . . . 6 63 . 94 Treads 55 | . . . . . . . . . 55 . . . Legs 2156 | . . . 453 1367 336 . . . . . . . Wheels 692 | 21 96 268 307 . . . . . . . . . Hover 4022 | . . . . . 497 1068 555 184 229 898 444 147 Flight . | . . . . . . . . . . . . . Fastest Speed 48 | 50 80 80 95 50 62 63 63 63 50 48 60 50 Average Speed 106 | 73 80 93 132 176 97 66 66 63 81 83 109 71 Slowest Speed 700 | 80 80 95 700 550 210 141 172 63 200 150 150 150 Overloaded Moves . | . . . . . . . . . . . . . Propulsion Burnouts . | . . . . . . . . . . . . . Robots Hopped 3 | . . . . . . . 3 . . . . . Potential Cave-ins 2 | . . . . . . . . . . 2 . . Cave-ins Triggered . | . . . . . . . . . . . . . Exploration Rate (%) 48 | 2 21 50 49 86 18 82 67 79 41 24 56 51 Regions Visited 12 Branch Regions 9 Pre-discovered Areas 7 | . . 2 1 3 1 . . . . . . . Known Exits Taken 8 | . . . . 1 1 1 1 1 1 1 1 . Unknown Exits Taken 4 | 1 1 1 1 . . . . . . . . . Scrap Searched 22 | . . 1 8 10 . . . . . . 3 . Spaces Dug 87 | . . . . . 19 21 8 . 10 22 7 . Terrain Destroyed 334 | . . . . . 59 27 12 1 179 49 7 . Melee 44 | . . . . . 9 19 . . 9 . 7 . Projectile 60 | . . . . . 10 8 12 1 3 26 . . AOE 230 | . . . . . 40 . . . 167 23 . . Terrain Rammed . | . . . . . . . . . . . . . Walls Destroyed . | . . . . . . . . . . . . . Machines Disabled . | . . . . . . . . . . . . . Actions | -11 -10 -10 -10 -8 -6 -6 -6 -6 -6 -5 -5 -5 --------- Run | Yrd Mat Min Sub Scr Fac Ext Cet Arc Hub Fac Upp Upp Total 8732 | 28 108 280 892 1542 1004 1529 787 285 353 1159 517 248 Wait 800 | . 1 . 59 . 74 263 147 69 12 133 39 3 Move 7194 | 26 95 267 764 1479 832 1067 548 183 289 960 443 241 Hop 3 | . . . . . . . 3 . . . . . Pick Up 89 | . 8 9 12 23 12 4 7 5 2 4 3 . Fast Attach 66 | 2 . . 6 7 8 1 12 2 4 18 6 . Attach 40 | . 4 . 1 2 13 2 2 3 4 6 3 . Detach 11 | . . . . . 3 . . 2 . 4 . 2 Swap 42 | . . 1 4 2 6 16 5 3 5 . . . Drop 88 | . . . 13 29 4 5 19 5 1 6 4 2 Fire 239 | . . 3 33 . 37 69 44 2 20 28 3 . Melee 84 | . . . . . 15 28 . 11 15 . 15 . Ram . | . . . . . . . . . . . . . Kick . | . . . . . . . . . . . . . Crush 1 | . . . . . . . . . 1 . . . Escape Stasis 13 | . . . . . . 13 . . . . . . Rewire 61 | . . . . . . 61 . . . . . . Trap . | . . . . . . . . . . . . . Miscellaneous 1 | . . . . . . . . . . . 1 . Route ------- -11/Scrapyard -10/Materials -10/Mines (discovered 2 exits: [*Mat] / *Sub) -10/Subcaves (discovered 3 exits: [*Mat x2] / *Scr) -8/Scraptown (discovered 2 exits: *Fac x2) -6/Factory (discovered 8 exits: Fac x4 / Low x2 / *Ext x2) -6/Extension (discovered 3 exits: *Fac x2 / *Cet) -6/Cetus (discovered 2 exits: *Fac / *Arc) -6/Archives (discovered 3 exits: *Fac / *Hub x2) -6/Hub_04(d) (discovered 3 exits: *Fac x3) -5/Factory (discovered 2 exits: *Upp x2) -5/Upper Caves -5/Upper Caves History --------- Turn | Location | Event 3 | -11/Scrapyard | Discovered new exit (range 15) 24 | -11/Scrapyard | Entered Materials 95 | -10/Materials | Discovered new exit (range 16) 114 | -10/Materials | Entered Mines 127 | -10/Mines | Discovered new exit (range 5) 134 | -10/Mines | Met a Derelict shopkeep closing up shop 215 | -10/Mines | Found a hidden stash of uninstalled traps 282 | -10/Mines | Discovered new exit (range 9) 297 | -10/Mines | Found a Scrap Suit stashed away for nefarious purposes 308 | -10/Mines | Build established: Mutant 340 | -10/Mines | Learned location of Zion (-7) 384 | -10/Mines | Entered Subcaves 385 | -10/Subcaves | Approached by a straggling Scientist 573 | -10/Subcaves | Scientist uncovered a shortcut to Scraptown 663 | -10/Subcaves | Discovered new exit (range 9) 699 | -10/Subcaves | Disturbed a concealed Subdweller 729 | -10/Subcaves | Discovered new exit (range 13) 827 | -10/Subcaves | Met a Zionite searching for "candidates" 854 | -10/Subcaves | Core integrity fell below 50% 1047 | -10/Subcaves | Shifting Twisted Machinery released Battle Cannon 1052 | -10/Subcaves | Shifting Twisted Machinery released Mak. Thermal Plating 1287 | -10/Subcaves | Visited 4L-MR0's lab 1301 | -10/Subcaves | Found Prototype Device 1307 | -10/Subcaves | Found Gun Armor 1422 | -10/Subcaves | Build established: Scavenger-Mutant 1583 | -10/Subcaves | Entered Scraptown 1704 | -8/Scraptown | Visited Comm Corps 1747 | -8/Scraptown | Scanned Subdweller tech in exchange for log data 1750 | -8/Scraptown | Learned Research non-interactive machine intel 1751 | -8/Scraptown | Learned Research security intel 1753 | -8/Scraptown | Learned 12 Factory zone layouts 1754 | -8/Scraptown | Learned Research stockpile data 1756 | -8/Scraptown | Learned Factory stockpile data 1839 | -8/Scraptown | Discovered new exit (range 13) 1889 | -8/Scraptown | Heard Great Nut preacher, LISTEN AND RECITE! 1953 | -8/Scraptown | Visited UFD Registry 1953 | -8/Scraptown | Registered with UFD as "Cryotorch" 1994 | -8/Scraptown | Visited Cyclists 2007 | -8/Scraptown | Entered Cyclist Reading Room 2102 | -8/Scraptown | Guru changed UFD alias to "Phasecutter" 2411 | -8/Scraptown | Visited Bundlers 2544 | -8/Scraptown | Build established: Mutant 2852 | -8/Scraptown | Visited Shadow of the Wyrm 2952 | -8/Scraptown | Visited Cartography Club 3034 | -8/Scraptown | Found Surveybot 17 Chip 3061 | -8/Scraptown | Learned location of Storage (-8) 3061 | -8/Scraptown | Learned location of Proximity Caves (-3) 3061 | -8/Scraptown | Learned location of Archives (-6) 3061 | -8/Scraptown | Learned 20 Factory zone layouts 3061 | -8/Scraptown | Learned 24 Factory zone layouts 3061 | -8/Scraptown | Learned 12 Research zone layouts 3061 | -8/Scraptown | Learned 8 Upper Caves zone layouts 3061 | -8/Scraptown | Learned location of 2 exits from Research 3061 | -8/Scraptown | Learned location of 3 exits from Lower Caves 3061 | -8/Scraptown | Learned 12 Upper Caves zone layouts 3061 | -8/Scraptown | Identified exit to Factory 3187 | -8/Scraptown | Visited Derelict Rescue Squad 3200 | -8/Scraptown | Found DRS Beacon 3243 | -8/Scraptown | Visited Abandonware Association 3264 | -8/Scraptown | Learned abandonware demo "HACKBUD.EXE" 3310 | -8/Scraptown | Visited DA-N13 Charitable Foundation 3329 | -8/Scraptown | Found DCF Scrap (30 items) 3367 | -8/Scraptown | Visited Scrapoid Research Area 3407 | -8/Scraptown | Visited Infowarlord's Domain 3419 | -8/Scraptown | Found Exp. Terrain Scanner 3454 | -8/Scraptown | Visited Analyses Database 3528 | -8/Scraptown | Delivered Scrap Shield to a Scientist 3713 | -8/Scraptown | Visited Junk Repository 3755 | -8/Scraptown | Visited Scrapoid Pod Storage 3765 | -8/Scraptown | Found Scrapoid Pod 3802 | -8/Scraptown | Visited Scrap Suit Storage 4110 | -8/Scraptown | Met Optimus 4110 | -8/Scraptown | Accepted into 0bPrime 4251 | -8/Scraptown | Entered Factory 4251 | -6/Factory | Evolved 8 slots: Propulsion x3, Utility x5 4252 | -6/Factory | Identified exit to Factory 4252 | -6/Factory | Identified exit to Lower Caves 4253 | -6/Factory | Identified exit to Extension 4543 | -6/Factory | Build established: Derelict-Mutant 4757 | -6/Factory | Loaded intel: 8 recycling unit locations 4766 | -6/Factory | Lost 3 parts (2n1w) 4779 | -6/Factory | Learned location of Protoforge (-2) 4850 | -6/Factory | Lost 4 parts (1p2n1w) 4864 | -6/Factory | P-60 Hacker assimilated allied Administrator 5a 4919 | -6/Factory | Build established: Hacker-Mutant 5306 | -6/Factory | Entered Extension 5621 | -6/Extension | Warlord forces began an assault 5795 | -6/Extension | Disrupted transfer network 5896 | -6/Extension | Loaded intel: 1 recycling unit location 5920 | -6/Extension | Rescued a captive Derelict 5980 | -6/Extension | Rescued a captive Derelict 5981 | -6/Extension | Rescued a captive Derelict 6012 | -6/Extension | Rescued a captive Derelict 6076 | -6/Extension | Spotted B-75 Beast 6099 | -6/Extension | Allies destroyed B-75 Beast 6137 | -6/Extension | Discovered exit to Factory (range 15) 6267 | -6/Extension | Rescued A7 6328 | -6/Extension | Central database locked down 6440 | -6/Extension | Discovered exit to Factory (range 10) 6441 | -6/Extension | Discovered new exit (range 6) 6464 | -6/Extension | Identified exit to Cetus 6632 | -6/Extension | Entered Cetus 6632 | -6/Cetus | Accompanied by 13 allies (A7) 6637 | -6/Cetus | Acquired a Cetus Manufacturing Module code from A7 6668 | -6/Cetus | Build established: Commander-Mutant 6682 | -6/Cetus | Spotted Cetus Guard 6682 | -6/Cetus | Spotted Cetus Guard 6685 | -6/Cetus | Spotted Cetus Guard 6693 | -6/Cetus | Allies destroyed Cetus Guard 6693 | -6/Cetus | Allies destroyed Cetus Guard 6694 | -6/Cetus | Spotted Cetus Guard 6708 | -6/Cetus | Allies destroyed Cetus Guard 6768 | -6/Cetus | Started Cetus Manufacturing Module 6777 | -6/Cetus | Discovered new exit (range 16) 6785 | -6/Cetus | Identified exit to Archives 6793 | -6/Cetus | Manufactured an Enhanced Grunt 6818 | -6/Cetus | Manufactured an Enhanced Grunt 6843 | -6/Cetus | Manufactured an Enhanced Grunt 6861 | -6/Cetus | Spotted Cetus Guard 6867 | -6/Cetus | Spotted Cetus Guard 6867 | -6/Cetus | Spotted Cetus Guard 6868 | -6/Cetus | Manufactured an Enhanced Grunt 6871 | -6/Cetus | Destroyed Cetus Guard 6871 | -6/Cetus | Spotted Cetus Guard 6875 | -6/Cetus | Allies destroyed Cetus Guard 6877 | -6/Cetus | Allies destroyed Cetus Guard 6883 | -6/Cetus | Allies destroyed Cetus Guard 6893 | -6/Cetus | Manufactured an Enhanced Grunt 6895 | -6/Cetus | Discovered exit to Factory (range 16) 6898 | -6/Cetus | Met Revision 17 6906 | -6/Cetus | Lost 3 allies 6949 | -6/Cetus | Found Prototype Device 6949 | -6/Cetus | Identified Exp. Thermal Shield 7144 | -6/Cetus | Murdered A7 7148 | -6/Cetus | Extracted ID and sensor layout for unrecognized location from A7's data core 7228 | -6/Cetus | Scrapoid Pod released 06C06-D (x5) 7288 | -6/Cetus | Entered Archives 7288 | -6/Archives | Accompanied by 17 allies 7320 | -6/Archives | Discovered new exit (range 15) 7326 | -6/Archives | Unable to access archive contents 7350 | -6/Archives | Discovered exit to Factory (range 24) 7413 | -6/Archives | Discovered new exit (range 25) 7470 | -6/Archives | Identified exit to Hub_04(d) 7525 | -6/Archives | Entered Hub_04(d) 7525 | -6/Hub_04(d) | Accompanied by 17 allies 7539 | -6/Hub_04(d) | Discovered exit to Factory (range 23) 7548 | -6/Hub_04(d) | Discovered exit to Factory (range 29) 7680 | -6/Hub_04(d) | Lost 5 allies 7714 | -6/Hub_04(d) | Discovered exit to Factory (range 19) 7724 | -6/Hub_04(d) | Garrison activated, responded to threat 7745 | -6/Hub_04(d) | Network Hub disabled 7770 | -6/Hub_04(d) | Lost 3 allies 7784 | -6/Hub_04(d) | Lost 3 parts (2n1w) 7789 | -6/Hub_04(d) | Destroyed 11 combat bots 7825 | -6/Hub_04(d) | Core integrity fell below 50% 7835 | -6/Hub_04(d) | Spotted Lightning 7835 | -6/Hub_04(d) | Spotted Lightning 7835 | -6/Hub_04(d) | Spotted Lightning 7836 | -6/Hub_04(d) | Spotted Lightning 7836 | -6/Hub_04(d) | Spotted Lightning 7850 | -6/Hub_04(d) | System corruption reached 10% 7873 | -6/Hub_04(d) | Entered Factory 7873 | -5/Factory | Evolved 2 slots: Utility x2 7900 | -5/Factory | Lost 8 parts (2n4u2w) 7963 | -5/Factory | Build established: Hacker-Mutant 8035 | -5/Factory | Fabricated Adv. Hacking Suite? 8089 | -5/Factory | Identified exit to DSF 8370 | -5/Factory | Watched by a mysterious "MATRIX" hacker 8685 | -5/Factory | Identified exit to Upper Caves 8835 | -5/Factory | System corruption reached 10% 8873 | -5/Factory | Lost 7 parts (1p2n3u1w) 8907 | -5/Factory | Entered Upper Caves 8908 | -5/Upper Caves | Identified exit to Upper Caves 8909 | -5/Upper Caves | UFD Scientist delivered a prototype 8909 | -5/Upper Caves | Found Prototype Protection 8909 | -5/Upper Caves | Identified Enh. Scrap Shield 8981 | -5/Upper Caves | Attracted the attention of an 0b10 checkpoint 9070 | -5/Upper Caves | Activated DRS Beacon 9100 | -5/Upper Caves | Core integrity fell below 50% 9137 | -5/Upper Caves | Lost 4 parts (1u3w) 9200 | -5/Upper Caves | Learned Factory machine intel 9385 | -5/Upper Caves | Entered a destroyed Warlord outpost 9497 | -5/Upper Caves | Entered another Upper Caves area 9502 | -5/Upper Caves | Learned Factory interactive machine intel 9580 | -5/Upper Caves | Learned 4 Factory zone layouts 9620 | -5/Upper Caves | Core integrity fell below 20% 9652 | -5/Upper Caves | Lost 5 parts (4u1w) 9674 | -5/Upper Caves | Destroyed by S-27 Virus with Autogun Last Messages --------------- 09580_ Acquired derelict log, extracted data. Data stored: Factory zone layouts (x4). 09581_ 31-MGO(k) breaks down the debris. 09590_ Fabnet algorithm triggers S-27 Virus IFF filter rewrite. 09594_ System corrupted: Energy discharge (-21). 09597_ Mak. System Shield destroyed. 09599_ Imp. Proton Missile Launcher destroyed. 09602_ Imp. System Shield destroyed. 09605_ Targeting Computer destroyed. A strange signal echoes through the caves. 09619_ 7QZMKKQS 09654_ System corrupted: Matter fused (-9). 09672_ 3V=>CQQYJ9WXF46 MQER2HZZA%WXH&:C Map ----- +----------------------------------------------------+ | ?????????????????????????????????????????????????? | | ?????????????????????????????????????????????????? | | ?????????????????????????????????????????????????? | | ?????????????????????????????????????????????????? | | ?????????????????????????????????????????????????? | | ?????????????????????????????????????????????????? | | ?????????????????????????????????????????????????? | | ?????????????????????????????????????????????????? | | ?????????????????????????????????????????????????? | | ?????????????????????????????????????????????????? | | ?????????????????????????????????????????????????? | | ?????????????????????????????????????????????????? | | ?????????????????????????????????????????????????? | | ?????????????????????????????????????????????????? | | ??????????????????????????????????#?##???????????? | | ?????????????????????????????#???# ? #?####??????? | | ??????????????????????????### ??? ??? ##?????? | | ??????????????????????????? ??# ? ???? #?????? | | ??????###??????????????????? ?# #????# #?????? | | ????### #?#????????????????? ? # ????## #?????# | | ????# ###?????????????????? # #???## #??### | | ????# ??????????????????# # #??## #??# | | ????## ??????????????????# #??## #??# | | ?####### ??????????????###?# #???# ##?# | | ## ##### ???????????#### ### ##### ### | | # ### ???????????# @ ssss s s ## | | # ### ???????# # | | ## ## ???????# #####+# ## ## | | ?# ???????##### ???? "# ## ## # | | ## ???????????# ? "# ## ### # | | # ### ???????????# #" # # #?## | | #####?#####??????????? ?#" ! "# #??# | | ??????????#??????????? ?# " | | ??????????#?????????? ?#""" # | | ###########?????????? ?#""" T ######## | | # ##????????? ????"" "# ####??????? | | # ?? ? ????????? ????"" " "# #?????????? | | # ? ???????? ?????## # ## ?????????? | | # ?? ???????? ?????? ? ? ?????????# | | # # ? ?????????? ??????? ?? ?????????# | | # # ? # ??????????????????? ??? ??????????? | | # ??????????????????????????????????????? | | ## # ??????????????????????????????????????? | | ## ??????????????????????????????????????? | | # ### ??????????????????????????????????????? | | # #?## ??????????????????????????????????????? | | # #??## ??????????????????????????????????????? | | # ##??# ??????????????????????????????????????? | | # #??# ??????????????????????????????????????? | | ## #??##??????????????????????????????????????? | +----------------------------------------------------+ Best States ------------- Heat Dissipation 47 Energy Generation 25 Energy Capacity 350 Matter Stores 300 Matter Capacity 300 Sight Range 16 Robot Scan Range 15 Terrain Scan Range 30 Terrain Scan Density 1210 ECM Strength 1 Jamming Range 12 Cloak Strength 2 Additional Mass Support 9 Armor Coverage 800 Resistance: KI 20 Resistance: TH 30 Evasion (%) 55 Targeting Accuracy 5 Core Analysis 6 Recoil Reduction 2 Salvage Targeting 2 Offensive Hacking 37 Defensive Hacking 24 Item Schematics ----------------- Hacking Suite | -6/Factory | Scanalyzed Adv. Hacking Suite | -6/Extension | Hacked Adv. Sensor Array | -6/Extension | Hacked Robot Schematics ------------------ None Fabricated ------------ Adv. Hacking Suite | x1 | -5/Factory Repaired ---------- Nothing Studied --------- Cmb. Airjet | -6/Factory | Hacked Alien Tech Used ----------------- None Achievements -------------- Recruitment Drive Challenges ------------ None Game ------ Seed InterceptDispersalCloak Manual? 1 Play Time 02:19:56 Cumulative 466.4 hours Start 2026.07.24 @ 21:32:48 End 2026.07.25 @ 01:43:57 Sessions 1 Manual Loads 0 Difficulty Rogue Special Mode None Game No. 237 Rogue 233 Adventurer 0 Explorer 4 Win Type - Total 25 Types 9/1/2/5/1/2/3/1/1/0 Lore% 68 Gallery% 71 Achievement% 52 Wizard Run 0 Options --------- Layout 1 ASCII 0 Keyboard 0 Movement Mouse Keybinds 0 Fullscreen 1 Font 24/Smallcaps Map View 50x35 Zoom Use 0% Tactical HUD 1 Map Filters NONE Filters NONE Steam 1 RUN: f7c9a53a-55fa-4f32-957c-5666aada7991